Cogmind - Beta 10.2 @@@ ROGUE MODE // 2021.10.18 @ 19:17:16 Player: MinorBread Result: Destroyed by G-47 Trooper with Particle Gun Performance ------------- Evolutions (0) 0 Regions Visited (2) 400 Robots Destroyed (20) 100 Value Destroyed (524) 524 Prototype IDs (4) 80 Alien Tech Used (0) 0 Bonus (0) 0 TOTAL SCORE: 1104 Bonus ------- None Cogmind --------- Core Integrity 0/250 Matter 183/300 Energy 100/100 System Corruption 3% Temperature Cool (9) Movement Core (850) Ox16 Location -10/Mines Parts ------- > --- POWER (1) -------- (None) > --- PROPULSION (2) --- (None) > --- UTILITY (2) ------ Large Storage Unit High-capacity Storage Unit > --- WEAPON (2) ------- Mini Grenade Launcher > --- INVENTORY (18) --- Light Nuclear Core Improved Flight Unit Improved Flight Unit Improved Flight Unit Improved Flight Unit Medium Storage Unit Medium Storage Unit Signal Interpreter Light Armor Plating Light Armor Plating Light Armor Plating Light Assault Rifle Light Assault Rifle Mini Grenade Launcher Mini Grenade Launcher Mining Laser Peak State ------------ > --- POWER ------------ Light Nuclear Core > --- PROPULSION ------- Improved Flight Unit Improved Flight Unit > --- UTILITY ---------- Large Storage Unit High-capacity Storage Unit > --- WEAPON ----------- Mini Grenade Launcher > --- INVENTORY -------- Improved Flight Unit Improved Flight Unit Medium Storage Unit Medium Storage Unit Signal Interpreter Light Armor Plating Light Armor Plating Light Armor Plating Light Assault Rifle Light Assault Rifle Mini Grenade Launcher Mini Grenade Launcher Mining Laser [Rating: 14] Favorites ----------- Power Ion Engine Engine Ion Engine Power Core Light Nuclear Core Propulsion Light Treads Treads Light Treads Leg Aluminum Leg Wheel Wheel Flight Unit Improved Flight Unit Utility Small Storage Unit Storage Small Storage Unit Weapon Light Assault Rifle Energy Gun EM Pulse Gun Energy Cannon Light EM Pulse Cannon Ballistic Gun Light Assault Rifle Launcher Mini Grenade Launcher Build | -11 -10 -10 ------- Run | Scr Mat Min Slots Evolved . | . . . Power . | . . . Propulsion . | . . . Utility . | . . . Weapon . | . . . Parts Attached 21 | . 15 6 Power 2 | . 1 1 Engine 1 | . 1 . Core 1 | . . 1 Reactor . | . . . Propulsion 10 | . 7 3 Treads 4 | . 4 . Leg 1 | . . 1 Wheel 3 | . 3 . Hover . | . . . Flight 2 | . . 2 Utility 3 | . 3 . Device . | . . . Storage 3 | . 3 . Processor . | . . . Hackware . | . . . Protection . | . . . Artifact . | . . . Weapon 6 | . 4 2 Energy Gun 1 | . 1 . Energy Cannon 1 | . 1 . Ballistic Gun 2 | . 2 . Ballistic Cannon . | . . . Launcher 2 | . . 2 Special Weapon . | . . . Impact Weapon . | . . . Slashing Weapon . | . . . Piercing Weapon . | . . . Special Melee Weapon . | . . . Unidentified Prototypes . | . . . Parts Lost 10 | . 4 6 Power 2 | . 1 1 Propulsion 3 | . . 3 Utility . | . . . Weapon 5 | . 3 2 Highest Loss Streak 6 | . 1 6 Average Slot Usage (%) 86 | . 89 68 Engine 13 | . 14 7 Treads 16 | . 17 7 Wheel 9 | . 10 7 Storage 20 | . 18 28 Energy Gun 9 | . 11 . Energy Cannon 2 | . 2 7 Ballistic Gun 13 | . 14 7 Naked Turns . | . . . Heaviest Build 58 | 11 58 58 Greatest Support 40 | 20 40 10 Greatest Overweight (x) 15 | . 5 15 Average Overweight (x) 1 | . . 6 Largest Inventory Capacity 18 | 6 18 18 Average Capacity 11 | 6 10 18 Most Carried 18 | 6 18 18 Average Carried 9 | 6 7 17 Final Capacity 18 | 6 18 18 Final Carried 18 | 6 18 16 Class Distribution -------------------- 100% | Mutant Dominant Class ---------------- Mutant | -10/Materials Mutant | -10/Mines Resources | -11 -10 -10 ----------- Run | Scr Mat Min Matter Collected 396 | 200 174 22 Remotely . | . . . Salvage Created 619 | . 512 107 Parts 42 | . 35 7 Haulers Intercepted 1 | . 1 . Recyclers Shooed . | . . . Parts Field Recycled . | . . . Retrieved Matter . | . . . Parts Self-Destructed . | . . . Prevented . | . . . Kills | -11 -10 -10 ------- Run | Scr Mat Min Combat Hostiles Destroyed 19 | . 11 8 Guns 11 | . 10 1 Cannons 3 | . . 3 AOE 5 | . 1 4 Classes Destroyed 6 | . 5 1 Tunneler 1 | . 1 . Hauler 1 | . 1 . Watcher 2 | . 2 . Swarmer 5 | . 3 2 Grunt 11 | . 8 3 Assembled 3 | . . 3 Best Kill Streak 5 | . 5 2 Combat Bots Only 4 | . 4 2 Max Kills in Single Turn 1 | . 1 1 Gunslinging . | . . . Exploded 1 | . 1 1 Melee . | . . . Uniques/NPCs Destroyed . | . . . Combat | -11 -10 -10 -------- Run | Scr Mat Min Damage Taken 1348 | . 599 749 Core 256 | . 102 154 Absorbed by Shields . | . . . Core Remaining (%) 100 | 100 . . Volleys Fired 85 | . 64 21 Largest 2 | . 2 2 Hottest 90 | . 90 76 Shots Fired 148 | . 113 35 Gun 126 | . 112 14 Cannon 14 | . 1 13 Launcher 8 | . . 8 Special . | . . . Kinetic 45 | . 31 14 Thermal 33 | . 33 . Explosive 8 | . . 8 Electromagnetic 62 | . 49 13 Robot Hit Streak 16 | . 16 3 Robot Miss Streak 3 | . 3 2 Penetration Max . | . . . Secondary Targets 3 | . 3 . Max Gunslinging Chain 1 | . 1 . Shots Hit Robots 92 | . 76 16 Core Hits 41 | . 28 13 Critical Hits . | . . . Critical Kills . | . . . Critical Parts Destroyed . | . . . Melee Attacks . | . . . Impact . | . . . Slashing . | . . . Piercing . | . . . Sneak Attacks . | . . . Combat Hostiles . | . . . Follow-up Attacks . | . . . Damage Inflicted 1507 | . 872 635 Guns 792 | . 757 35 Cannons 171 | . 36 135 Explosions 544 | . 79 465 Melee . | . . . Ramming . | . . . Kinetic 162 | . 127 35 Thermal 316 | . 316 . Explosive 465 | . . 465 Electromagnetic 564 | . 429 135 Impact . | . . . Slashing . | . . . Piercing . | . . . Highest Corruption 3 | . 3 3 Average Corruption 2 | . 2 3 Corruption Purged . | . . . Effects 17 | . 13 4 Message Errors 6 | . 6 . Matter Fused 3 | . 3 . Heat Flow Errors 3 | . 3 . Energy Discharges 1 | . . 1 Data Loss (minor) 2 | . 1 1 Targeting Errors 2 | . . 2 Overload Shots . | . . . Overflow Damage 51 | . 6 45 Projectiles 6 | . 6 . Explosions 45 | . . 45 Melee . | . . . Knockbacks . | . . . Impact . | . . . Kinetic . | . . . Secondary . | . . . Self-Inflicted Damage 175 | . 20 155 Shots 6 | . 1 5 Rammed . | . . . Targets Rammed . | . . . Kicked . | . . . Crushed . | . . . Highest Temperature 262 | . 262 144 Average Temperature 72 | . 77 57 Received Heat Transfer 508 | . 294 214 Siege Activations . | . . . Robots Corrupted . | . . . Combat Hostiles . | . . . Parts Fried . | . . . Impact Corruptions . | . . . Robots Melted . | . . . Combat Hostiles . | . . . Parts Melted . | . . . Heat Transferred 673 | . 673 . Parts Sabotaged . | . . . Parts Stolen . | . . . Parts Stripped . | . . . Power Chain Reactions 2 | . 2 . Missiles Intercepted . | . . . Alert | -11 -10 -10 ------- Run | Scr Mat Min Peak Influence 267 | . 267 112 Initial 17 | . . 17 Average 113 | . 121 56 Maximum Alert Level 1 | . 1 . Low Security (%) 87 | 100 85 100 Level 1 12 | . 14 . Level 2 . | . . . Level 3 . | . . . Level 4 . | . . . Level 5 . | . . . High Security . | . . . Max Security . | . . . Squads Dispatched 2 | . 2 . Investigation 1 | . 1 . Extermination . | . . . Reinforcement 1 | . 1 . Assault . | . . . Garrison . | . . . Intercept . | . . . Construction Impeded . | . . . Haulers Reinforced . | . . . Stealth | -11 -10 -10 --------- Run | Scr Mat Min Distress Signals 2 | . 2 . Communications Jammed . | . . . Distress Signals . | . . . Times Spotted 36 | . 23 13 Peak Tracking Total 5 | . 5 3 Tactical Retreats 3 | . 2 1 Traps | -11 -10 -10 ------- Run | Scr Mat Min Traps Triggered 1 | . 1 . Indirectly . | . . . Trap Hack Attempts . | . . . Triggered . | . . . Disarmed . | . . . Reprogrammed . | . . . Reused . | . . . Traps Extracted . | . . . Installed . | . . . Triggered . | . . . Machines | -11 -10 -10 ---------- Run | Scr Mat Min Machines Disabled 2 | . . 2 Max in Single Turn 2 | . . 2 Machines Sabotaged . | . . . Garrisons Compromised . | . . . Overloaded Fab Kills . | . . . Fab Network Shutdowns . | . . . Hacking | -11 -10 -10 --------- Run | Scr Mat Min Machines Accessed 4 | . 4 . Terminals 4 | . 4 . Fabricators . | . . . Repair Stations . | . . . Recycling Units . | . . . Scanalyzers . | . . . Garrison Access . | . . . Total Hacks 9 | . 9 . Successful 5 | . 5 . Failed 4 | . 4 . Catastrophic 1 | . 1 . Database Lockouts . | . . . Manual 5 | . 5 . Terminals 9 | . 9 . Fabricators . | . . . Repair Stations . | . . . Recycling Units . | . . . Scanalyzers . | . . . Garrison Access . | . . . Terminal Hacks 2 | . 2 . Prototype ID Bank 2 | . 2 . Fabricator Hacks . | . . . Repair Station Hacks . | . . . Recycling Unit Hacks . | . . . Scanalyzer . | . . . Garrison Access Hacks . | . . . Unauthorized Hacks 3 | . 3 . Terminals 3 | . 3 . Botnet 3 | . 3 . Fabricators . | . . . Repair Stations . | . . . Recycling Units . | . . . Scanalyzers . | . . . Garrison Access . | . . . Data Cores Recovered . | . . . Used . | . . . Hacking Detections 4 | . 4 . Full Trace Events 1 | . 1 . Feedback Events 1 | . 1 . Corruption 1 | . 1 . Feedback Blocked . | . . . Robot Schematics Acquired . | . . . Robots Built . | . . . Matter . | . . . Time . | . . . Total Robot Build Rating . | . . . Part Schematics Acquired . | . . . Parts Built . | . . . Matter . | . . . Time . | . . . Total Part Build Rating . | . . . Parts Repaired . | . . . Time . | . . . Parts Recycled . | . . . Recycled Matter . | . . . Retrieved Matter . | . . . Retrieved Components . | . . . Parts Scanalyzed . | . . . Part Schematics Acquired . | . . . Parts Damaged . | . . . Bothacking | -11 -10 -10 ------------ Run | Scr Mat Min Used RIF Installer . | . . . Robots Hacked . | . . . Non-combat . | . . . Combat . | . . . Robot Hacks Applied . | . . . Relay Couplers Released . | . . . Robots Rewired . | . . . Allies Hacked . | . . . Hacks Repelled . | . . . Allies | -11 -10 -10 -------- Run | Scr Mat Min Total Allies . | . . . Largest Group . | . . . Highest-Rated Group . | . . . Highest-Rated Ally . | . . . Total Orders . | . . . Ally Attacks . | . . . Total Damage . | . . . Kills . | . . . Allies Corrupted . | . . . Allies Melted . | . . . Intel | -11 -10 -10 ------- Run | Scr Mat Min Robot Analysis Total . | . . . Derelict Logs Recovered . | . . . Drone Launches . | . . . Drone Recoveries . | . . . Exploration | -11 -10 -10 ------------- Run | Scr Mat Min Turns Passed 1220 | 2 1057 161 Spaces Moved 593 | 2 545 46 Core 6 | . . 6 Treads 390 | . 390 . Legs 2 | 2 . . Wheels 195 | . 155 40 Hover . | . . . Flight . | . . . Fastest Speed 80 | 120 80 130 Average Speed 156 | 120 151 217 Slowest Speed 800 | 120 200 800 Overloaded Moves . | . . . Propulsion Burnouts . | . . . Robots Hopped . | . . . Cave-ins Triggered . | . . . Exploration Rate (%) 31 | 2 77 15 Regions Visited 2 Branch Regions 1 Pre-discovered Areas . | . . . Known Exits Taken . | . . . Unknown Exits Taken 2 | 1 1 . Scrap Searched . | . . . Spaces Dug . | . . . Terrain Destroyed 81 | . 9 72 Melee . | . . . Projectile . | . . . AOE 81 | . 9 72 Terrain Rammed . | . . . Walls Destroyed . | . . . Machines Disabled . | . . . Actions | -11 -10 -10 --------- Run | Scr Mat Min Total 746 | 1 668 77 Wait 12 | . 12 . Move 591 | 1 544 46 Hop . | . . . Pick Up 25 | . 25 . Fast Attach . | . . . Attach 12 | . 6 6 Detach 4 | . . 4 Swap 9 | . 9 . Drop 8 | . 8 . Fire 85 | . 64 21 Melee . | . . . Ram . | . . . Kick . | . . . Crush . | . . . Escape Stasis . | . . . Rewire . | . . . Trap . | . . . Miscellaneous . | . . . Route ------- -11/Scrapyard -10/Materials (discovered 5 exits: [*Mat x3] / [*Min x2]) -10/Mines History --------- Turn | Location | Event 1 | -11/Scrapyard | Discovered new exit (range 1) 3 | -11/Scrapyard | Entered Materials 32 | -10/Materials | Discovered new exit (range 6) 121 | -10/Materials | Discovered new exit (range 7) 310 | -10/Materials | Build established: Mutant 360 | -10/Materials | Discovered new exit (range 6) 367 | -10/Materials | Discovered new exit (range 14) 522 | -10/Materials | Discovered new exit (range 16) 1060 | -10/Materials | Entered Mines 1061 | -10/Mines | Assembled infested the area 1066 | -10/Mines | Assisted by a Guerilla fighting off Assembled 1106 | -10/Mines | Core integrity fell below 50% 1187 | -10/Mines | Lost 6 parts (1p3n2w) 1217 | -10/Mines | Core integrity fell below 20% 1221 | -10/Mines | Destroyed by G-47 Trooper with Particle Gun Last Messages --------------- 01156_ Ion Engine destroyed. 01156_ Destroyed Ion Engine. 01158_ G-47 Trooper destroyed. 01160_ Destroyed Sml. Laser. 01160_ as-71350 destroyed. 01162_ The unstable cave ceiling collapses. 01177_ U-05 Engineer lays Concrete. 01178_ The unstable cave ceiling collapses. 01179_ U-05 Engineer lays Concrete. 01205_ The unstable cave ceiling collapses. 01205_ U-05 Engineer lays Concrete. 01206_ The unstable cave ceiling collapses. 01206_ U-05 Engineer lays Concrete. 01208_ U-05 Engineer builds a Wall. 01216_ U-05 Engineer lays Concrete. 01216_ G-34 Mercenary destroyed. 01217_ U-05 Engineer lays Concrete. 01218_ G-34 Mercenary destroyed. 01220_ U-05 Engineer builds a Wall. 01220_ System corrupted: Mni. Grenade Launcher targeting data glitched. Map ----- +----------------------------------------------------+ | | | | | | | | | | | | | | | | | ?????????????????????????????????????????????????? | | ?????????????????????????????????????????????????? | | ?????????????????????????????????????????????????? | | ??????????????????#??????????????????????????????? | | ????????????????? ##?????????????????????????????? | | #?####??????????# #?????????????????????????????? | | ### ##?????#### #?????????????????????????????? | | ## #???## #??????????????????????????????? | | ## ##?## #???????????????????????????????? | | #?# ### #????????????????????????????????? | | #??# ## #?????###?????????????????????????? | | #### #??##### #?????????????????????????? | | %## ###??# # #####?????????????????????? | | =%% ### #????# # ##????????????????????? | | #####*[##?# #????# ####?????????????????? | | ????#%##??# ###### #?????????????????? | | ????#%#???# %% # # ###???????????????? | | ????#=#???##### # # @ g #????????? | | ????#%#???????# r u *%! ###???????????????? | | ????#=#???????# #??????????????? | | ????%*#???????# ## #?????????????? | | ????##????????##### # ## ##?? #????????????? | | ??????????????????#########???? #????????????? | | ???????????????????????????????? #????????????? | | ????????????????????????????????? ##????????????? | | ???????????????????????????????????#?????????????? | | ?????????????????????????????????????????????????? | | ?????????????????????????????????????????????????? | | ?????????????????????????????????????????????????? | | ?????????????????????????????????????????????????? | | ?????????????????????????????????????????????????? | | ?????????????????????????????????????????????????? | | ?????????????????????????????????????????????????? | | ?????????????????????????????????????????????????? | | ?????????????????????????????????????????????????? | | ?????????????????????????????????????????????????? | | ?????????????????????????????????????????????????? | | ?????????????????????????????????????????????????? | | ?????????????????????????????????????????????????? | | ?????????????????????????????????????????????????? | | ?????????????????????????????????????????????????? | | ?????????????????????????????????????????????????? | +----------------------------------------------------+ Best States ------------- Heat Dissipation 25 Energy Generation 10 Energy Capacity 250 Matter Stores 300 Matter Capacity 300 Sight Range 16 Terrain Scan Density 10 Evasion (%) 44 Recoil Reduction 2 Item Schematics ----------------- None Robot Schematics ------------------ None Fabricated ------------ Nothing Alien Tech Used ----------------- None Achievements -------------- None Challenges ------------ None Game ------ Seed FissionMagneticSlayer Manual? 0 Play Time 00:15:48 Cumulative 21.8 hours Start 2021.10.18 @ 19:05:07 End 2021.10.18 @ 19:17:16 Sessions 1 Manual Loads 0 Difficulty Rogue Special Mode None Game No. 19 Rogue 19 Adventurer 0 Explorer 0 Win Type - Total 0 Types 0/0/0/0/0/0/0/0/0 Lore% 7 Gallery% 26 Achievement% 20 Wizard Run 0 Options --------- ASCII 0 Keyboard 0 Movement Numpad Keybinds 0 Fullscreen 0 Font 20/SmallcapsGlow Map View 76x50 Tactical HUD 1 Map Filters NONE Filters NONE Steam 1 RUN: 8b3a0bb2-34bc-4928-91d9-159837f3f045